Cogmind - Beta 13 @@@ ROGUE MODE // 2024.07.08 @ 15:45:55 Player: maykstuff Result: Destroyed by L-31 Rogue with Katana Performance ------------- Evolutions (1) 500 Regions Visited (2) 400 Robots Destroyed (34) 170 Value Destroyed (971) 971 Prototype IDs (2) 40 Alien Tech Used (0) 0 Bonus (0) 0 TOTAL SCORE: 2081 Bonus ------- None Cogmind --------- Core Integrity 0/400 Matter 300/300 Energy 100/100 System Corruption 0% Temperature Cool (6) Movement Core (350) Ox6 Location -9/Materials Parts ------- > --- POWER (1) -------- (None) > --- PROPULSION (2) --- (None) > --- UTILITY (4) ------ Large Storage Unit Targeting Computer Hacking Suite > --- WEAPON (2) ------- (None) > --- INVENTORY (15) --- Ion Engine Light Ion Engine Improved Ion Engine Heat Sink Medium Storage Unit Medium Armor Plating Peak State ------------ > --- POWER ------------ Ion Engine > --- PROPULSION ------- Light Treads Aluminum Leg > --- UTILITY ---------- Large Storage Unit Transport Network Coupler Targeting Computer Hacking Suite > --- WEAPON ----------- Katana > --- INVENTORY -------- Ion Engine Light Ion Engine Improved Ion Engine Heat Sink Medium Storage Unit Medium Armor Plating [Rating: 12] Favorites ----------- Power Ion Engine Engine Ion Engine Propulsion Light Treads Treads Light Treads Leg Aluminum Leg Wheel Wheel Utility Transport Network Coupler Device Heat Sink Storage Large Storage Unit Processor Transport Network Coupler Hackware Hacking Suite Weapon Light Assault Rifle Energy Gun Small Laser Ballistic Gun Light Assault Rifle Ballistic Cannon Light Cannon Launcher Grenade Launcher Slashing Weapon Katana Build | -11 -10 -9 ------- Run | Yrd Mat Mat Slots Evolved 2 | . . 2 Power . | . . . Propulsion . | . . . Utility 2 | . . 2 Weapon . | . . . Parts Attached 33 | 7 15 11 Power 5 | 1 3 1 Engine 5 | 1 3 1 Core . | . . . Reactor . | . . . Propulsion 7 | 2 3 2 Treads 3 | . 2 1 Leg 1 | . . 1 Wheel 3 | 2 1 . Hover . | . . . Flight . | . . . Utility 8 | 2 4 2 Device 1 | . 1 . Storage 4 | 2 1 1 Processor 2 | . 1 1 Hackware 1 | . 1 . Protection . | . . . Artifact . | . . . Weapon 13 | 2 5 6 Energy Gun 4 | . 3 1 Energy Cannon . | . . . Ballistic Gun 5 | 2 1 2 Ballistic Cannon 1 | . 1 . Launcher 2 | . . 2 Special Weapon . | . . . Impact Weapon . | . . . Slashing Weapon 1 | . . 1 Piercing Weapon . | . . . Special Melee Weapon . | . . . Unidentified Prototypes . | . . . Parts Lost 16 | . 7 9 Power 3 | . 2 1 Propulsion 6 | . 3 3 Utility 1 | . . 1 Weapon 6 | . 2 4 Highest Loss Streak 5 | . 5 4 To Critical Strikes 1 | . 1 . Average Slot Usage (%) 92 | . 97 83 Engine 12 | . 13 10 Treads 12 | . 11 14 Wheel 9 | . 15 . Storage 11 | . 11 11 Processor 15 | . 12 21 Hackware 5 | . 2 11 Energy Gun 5 | . 5 4 Ballistic Gun 11 | . 16 1 Ballistic Cannon 3 | . 5 . Slashing Weapon 2 | . . 5 Naked Turns . | . . . Heaviest Build 29 | 10 19 29 Greatest Support 40 | 20 40 40 Greatest Overweight (x) 8 | . 3 8 Average Overweight (x) . | . . . Largest Inventory Capacity 15 | 8 10 15 Average Capacity 10 | 7 8 15 Most Carried 9 | 5 9 6 Average Carried 5 | 3 6 4 Final Capacity 15 | 8 5 15 Final Carried 6 | 5 4 6 Class Distribution -------------------- 84% | Mutant 15% | Scavenger-Mutant Dominant Class ---------------- Mutant | -10/Materials Mutant | -9/Materials Resources | -11 -10 -9 ----------- Run | Yrd Mat Mat Matter Collected 738 | 290 336 112 Remotely . | . . . Salvage Created 1117 | 55 614 448 Parts 71 | 2 40 29 Haulers Intercepted 1 | . 1 . Recyclers Shooed . | . . . Parts Field Recycled . | . . . Retrieved Matter . | . . . Parts Self-Destructed . | . . . Prevented . | . . . Kills | -11 -10 -9 ------- Run | Yrd Mat Mat Combat Hostiles Destroyed 30 | . 17 13 Melee 8 | . . 8 Guns 12 | . 11 1 Cannons 6 | . 6 . AOE 4 | . . 4 Classes Destroyed 8 | 1 4 3 Worker 1 | . . 1 Hauler 1 | . 1 . Recycler 1 | 1 . . Operator 1 | . 1 . Swarmer 6 | . 3 3 Grunt 22 | . 14 8 Duelist 1 | . . 1 Sentry 1 | . . 1 Best Kill Streak 4 | 1 3 4 Combat Bots Only 4 | . 3 4 Max Kills in Single Turn 4 | 1 1 4 Gunslinging . | . . . Exploded 3 | . . 3 Melee 1 | . . 1 Uniques/NPCs Destroyed . | . . . Combat | -11 -10 -9 -------- Run | Yrd Mat Mat Hostile Shots Fired 193 | . 98 95 Missed 49 | . 18 31 Damage Taken 2007 | . 853 1154 Core 579 | . 176 403 Absorbed by Shields . | . . . Core Remaining (%) 64 | 100 29 . Volleys Fired 94 | 10 72 12 Largest 2 | 2 2 2 Hottest 70 | 40 60 70 Shots Fired 178 | 20 139 19 Gun 143 | 20 107 16 Cannon 32 | . 32 . Launcher 3 | . . 3 Special . | . . . Kinetic 151 | 20 122 9 Thermal 24 | . 17 7 Explosive 3 | . . 3 Electromagnetic . | . . . Robot Hit Streak 19 | 4 10 19 Robot Miss Streak 7 | 2 7 1 Penetration Max . | . . . Secondary Targets 1 | . 1 . Max Gunslinging Chain 1 | . 1 . Shots Hit Robots 123 | 12 78 33 Core Hits 56 | 2 37 17 Critical Kills 1 | . 1 . Critical Parts Destroyed . | . . . Critical Strikes 2 | . 1 1 Destroy 1 | . 1 . Sever 1 | . . 1 Melee Attacks 20 | . . 20 Impact . | . . . Slashing 20 | . . 20 Piercing . | . . . Sneak Attacks . | . . . Combat Hostiles . | . . . Follow-up Attacks . | . . . Damage Inflicted 1755 | 112 806 837 Guns 778 | 112 526 140 Cannons 280 | . 280 . Explosions 239 | . . 239 Melee 456 | . . 456 Ramming 2 | . . 2 Kinetic 871 | 112 697 62 Thermal 187 | . 109 78 Explosive 239 | . . 239 Electromagnetic . | . . . Impact . | . . . Slashing 456 | . . 456 Piercing . | . . . Highest Corruption 1 | . 1 . Average Corruption 1 | . 1 . Corruption Purged . | . . . Corruption Blocked . | . . . Effects 1 | . 1 . Message Errors 1 | . 1 . Overload Shots . | . . . Overflow Damage 18 | . . 18 Projectiles . | . . . Explosions 10 | . . 10 Melee 8 | . . 8 Knockbacks 3 | . 3 . Impact . | . . . Kinetic 3 | . 3 . Secondary . | . . . Self-Inflicted Damage . | . . . Shots . | . . . Rammed 3 | . . 3 Targets Rammed 3 | . . 3 Kicked . | . . . Crushed . | . . . Highest Temperature 88 | . 88 28 Average Temperature 22 | . 23 10 Received Heat Transfer 513 | . 291 222 Siege Activations . | . . . Robots Corrupted . | . . . Combat Hostiles . | . . . Parts Fried . | . . . Impact Corruptions . | . . . Robots Melted . | . . . Combat Hostiles . | . . . Parts Melted . | . . . Heat Transferred 425 | . 250 175 Parts Sabotaged . | . . . Parts Stolen . | . . . Parts Stripped . | . . . Power Chain Reactions . | . . . Alert | -11 -10 -9 ------- Run | Yrd Mat Mat Peak Influence 412 | 5 270 412 Initial 50 | . 3 50 Average 160 | 1 145 214 Maximum Alert Level 2 | . 1 2 Low Security (%) 59 | 100 71 30 Level 1 40 | . 28 67 Level 2 . | . . 1 Level 3 . | . . . Level 4 . | . . . Level 5 . | . . . High Security . | . . . Max Security . | . . . Squads Dispatched 7 | . 4 3 Investigation 3 | . 2 1 Extermination . | . . . Reinforcement 4 | . 2 2 Assault . | . . . Garrison . | . . . Intercept . | . . . Searches Triggered . | . . . Construction Impeded 1 | . . 1 Haulers Reinforced . | . . . Active Scanning Responses . | . . . Cargo Convoy Interrupts . | . . . Stealth | -11 -10 -9 --------- Run | Yrd Mat Mat Distress Signals 3 | . 3 . Communications Jammed . | . . . Distress Signals . | . . . Times Spotted 43 | . 25 18 Peak Tracking Total 4 | . 4 4 Tactical Retreats 1 | . . 1 Traps | -11 -10 -9 ------- Run | Yrd Mat Mat Traps Triggered 3 | . 3 . Indirectly . | . . . Trap Hack Attempts . | . . . Triggered . | . . . Disarmed . | . . . Reprogrammed . | . . . Reused . | . . . Traps Extracted . | . . . Installed . | . . . Triggered . | . . . Machines | -11 -10 -9 ---------- Run | Yrd Mat Mat Machines Disabled 2 | . 2 . Max in Single Turn 1 | . 1 . Machines Repaired . | . . . Machines Dismantled . | . . . Machines Sabotaged . | . . . Overloaded Fab Kills . | . . . Hacking | -11 -10 -9 --------- Run | Yrd Mat Mat Machines Accessed 9 | . 7 2 Terminals 7 | . 6 1 Fabricators . | . . . Repair Stations . | . . . Recycling Units 2 | . 1 1 Scanalyzers . | . . . Garrison Access . | . . . Total Hacks 25 | . 19 6 Successful 12 | . 7 5 Failed 13 | . 12 1 Catastrophic 7 | . 6 1 Database Lockouts . | . . . Manual 11 | . 11 . Terminals 19 | . 17 2 Fabricators . | . . . Repair Stations . | . . . Recycling Units 6 | . 2 4 Scanalyzers . | . . . Garrison Access . | . . . Terminal Hacks 8 | . 7 1 Robot Analysis 1 | . . 1 Prototype ID Bank 1 | . 1 . Locate Traps 1 | . 1 . Maintenance Status 1 | . 1 . Security Status 1 | . 1 . Hauler Manifests 2 | . 2 . Zone Layout 1 | . 1 . Fabricator Hacks . | . . . Repair Station Hacks . | . . . Recycling Unit Hacks 4 | . . 4 Process 1 | . . 1 Report Inventory 1 | . . 1 Retrieve Matter 2 | . . 2 Scanalyzer . | . . . Garrison Access Hacks . | . . . Unauthorized Hacks . | . . . Terminals . | . . . Fabricators . | . . . Repair Stations . | . . . Recycling Units . | . . . Scanalyzers . | . . . Garrison Access . | . . . Data Cores Recovered . | . . . Used . | . . . Hacking Detections 7 | . 6 1 Full Trace Events 4 | . 3 1 Feedback Events . | . . . Feedback Blocked . | . . . Robot Schematics Acquired . | . . . Robots Built . | . . . Authchips . | . . . Time . | . . . Total Robot Build Rating . | . . . Part Schematics Acquired . | . . . Parts Built . | . . . Authchips . | . . . Time . | . . . Total Part Build Rating . | . . . Parts Repaired . | . . . Time . | . . . Parts Recycled . | . . . Recycled Matter 12 | . . 12 Retrieved Matter 12 | . . 12 Retrieved Components . | . . . Parts Scanalyzed . | . . . Part Schematics Acquired . | . . . Parts Damaged . | . . . Bothacking | -11 -10 -9 ------------ Run | Yrd Mat Mat Used RIF Installer . | . . . Robots Hacked . | . . . Non-combat . | . . . Combat . | . . . Robot Hacks Applied . | . . . Relay Couplers Released . | . . . Fabnet Peak Effective % . | . . . Robots Rewired . | . . . Allies Hacked . | . . . Hacks Repelled . | . . . Allies | -11 -10 -9 -------- Run | Yrd Mat Mat Total Allies . | . . . Largest Group . | . . . Highest-Rated Group . | . . . Highest-Rated Ally . | . . . Total Orders . | . . . Ally Attacks . | . . . Total Damage . | . . . Kills . | . . . Allies Corrupted . | . . . Allies Melted . | . . . Intel | -11 -10 -9 ------- Run | Yrd Mat Mat Robot Analysis Total 1 | . . 1 Derelict Logs Recovered . | . . . Drone Launches . | . . . Drone Recoveries . | . . . Exploration | -11 -10 -9 ------------- Run | Yrd Mat Mat Turns Passed 1546 | 91 937 518 Spaces Moved 898 | 64 653 181 Core 10 | 4 3 3 Treads 385 | . 207 178 Legs . | . . . Wheels 503 | 60 443 . Hover . | . . . Flight . | . . . Fastest Speed 50 | 50 80 160 Average Speed 125 | 78 106 207 Slowest Speed 450 | 80 200 450 Overloaded Moves . | . . . Propulsion Burnouts . | . . . Robots Hopped . | . . . Cave-ins Triggered . | . . . Exploration Rate (%) 34 | 3 88 12 Regions Visited 2 Branch Regions . Pre-discovered Areas . | . . . Known Exits Taken . | . . . Unknown Exits Taken 2 | 1 1 . Scrap Searched . | . . . Spaces Dug . | . . . Terrain Destroyed 18 | . . 18 Melee . | . . . Projectile . | . . . AOE 18 | . . 18 Terrain Rammed . | . . . Walls Destroyed . | . . . Machines Disabled . | . . . Actions | -11 -10 -9 --------- Run | Yrd Mat Mat Total 1126 | 85 771 270 Wait 56 | . 20 36 Move 896 | 63 652 181 Hop . | . . . Pick Up 16 | 4 7 5 Fast Attach 12 | 7 1 4 Attach 13 | . 8 5 Detach 2 | 1 . 1 Swap 8 | . 6 2 Drop 6 | . 5 1 Fire 94 | 10 72 12 Melee 20 | . . 20 Ram 2 | . . 2 Kick . | . . . Crush 1 | . . 1 Escape Stasis . | . . . Rewire . | . . . Trap . | . . . Miscellaneous . | . . . Route ------- -11/Scrapyard -10/Materials (discovered 4 exits: *Mat x3 / [*Min]) -9/Materials History --------- Turn | Location | Event 26 | -11/Scrapyard | Discovered new exit (range 15) 92 | -11/Scrapyard | Entered Materials 302 | -10/Materials | Discovered new exit (range 12) 311 | -10/Materials | Build established: Mutant 364 | -10/Materials | Discovered new exit (range 17) 549 | -10/Materials | Discovered new exit (range 15) 622 | -10/Materials | Core integrity fell below 50% 667 | -10/Materials | Lost 5 parts (1p2n2w) 787 | -10/Materials | Discovered new exit (range 11) 1029 | -10/Materials | Entered another Materials area 1029 | -9/Materials | Evolved 2 slots: Utility x2 1224 | -9/Materials | Lost 3 parts (1n2w) 1505 | -9/Materials | Core integrity fell below 50% 1532 | -9/Materials | Core integrity fell below 20% 1547 | -9/Materials | Destroyed by L-31 Rogue with Katana Last Messages --------------- 01394_ R-06 Scavenger collects Ion Engine. 01395_ G-34 Mercenary destroyed. 01398_ Acquired 18 matter. 01403_ Acquired Aluminum Leg. 01404_ Dropped Aluminum Leg. 01405_ Acquired 10 matter. 01417_ Acquired Sml. Laser. 01442_ G-34 Mercenary destroyed. 01447_ Acquired 10 matter. 01451_ R-06 Scavenger collects Heat Sink. 01453_ R-06 Scavenger collects Aluminum Leg. 01455_ R-06 Scavenger collects Sml. Laser. 01456_ R-06 Scavenger collects Aluminum Leg. 01469_ R-06 Scavenger collects Ion Engine. 01498_ Sml. Laser severed. 01501_ Katana destroyed. 01531_ Ion Engine destroyed. 01542_ Lgt. Treads destroyed. 01542_ Transport Network Coupler destroyed. 01542_ Slammed into L-31 Rogue. Map ----- +----------------------------------------------------+ | ???????????????????????????????????????? | | ???????????????????????????????????????? | | ???????????????????????????????????????? | | ???????????????????????????????????????? | | ???????????????????????????????????????? | | ???????????????????????????????????????? | | ???????????????????????????????????????? | | ???????????????????????????????????????? | | ???????????????????????????????????????? | | ???????????????????????????????????????? | | ???????????????????????????????????????? | | ??????? ????????????????????????????? | | ?????# ????????????????????????????? | | ?????# ????????????????????????????? | | ?????# #???????????????????????????? | | ?????# #???????????????????????????? | | ?????# #???????????????????????????? | | ?????# #???????????????????????????? | | ?????# #???????????????????????????? | | ?????# #???????????????????????????? | | ?????# #???????????????????????????? | | ?????# #???????????????????????????? | | ?????# #???????????????????????????? | | ?????# #???????????????????????????? | | ?????# ############????????????????? | | ????## ## %@l #????????????????? | | ????# #""g """ #????????????????? | | ????# #"T """"" #????????????????? | | ????# % #""g""""" #????????????????? | | ????# + """"" #????????????????? | | ????# # """ #????????????????? | | ????# # #????????????????? | | ????# # = #????????????????? | | ????### %#############????????????????? | | ????# # #????????????????????????????? | | ####### #????????????????????????????? | | # ## #????????????????????????????? | | # !## ##???????????????????????????? | | # # #???????????????????????????? | | # =#% T #???????????????????????????? | | # %%+%"" #???????????????????????????? | | # # #???????????????????????????? | | # !# #???????????????????????????? | | # ### ###???????????????????????????? | | # #?# #?????????????????????????????? | | ######?# #?????????????????????????????? | | ???????# #?????????????????????????????? | | ######## #?????????????????????????????? | | # ## #?????????????????????????????? | | # """ ## #????#????????????????????????? | +----------------------------------------------------+ Best States ------------- Heat Dissipation 35 Energy Generation 10 Energy Capacity 250 Matter Stores 300 Matter Capacity 300 Sight Range 16 Terrain Scan Density 10 Evasion (%) 44 Targeting Accuracy 5 Recoil Reduction 2 Offensive Hacking 10 Item Schematics ----------------- None Robot Schematics ------------------ None Fabricated ------------ Nothing Alien Tech Used ----------------- None Achievements -------------- None Challenges ------------ None Game ------ Seed ConcussiveShieldChainsword Manual? 0 Play Time 00:19:07 Cumulative 10.6 hours Start 2024.07.08 @ 15:29:57 End 2024.07.08 @ 15:45:55 Sessions 1 Manual Loads 0 Difficulty Rogue Special Mode None Game No. 21 Rogue 21 Adventurer 0 Explorer 0 Win Type - Total 0 Types 0/0/0/0/0/0/0/0/0 Lore% 10 Gallery% 14 Achievement% 16 Wizard Run 0 Options --------- Layout 1 ASCII 1 Keyboard 0 Movement Numpad Keybinds 0 Fullscreen 1 Font 24/Proggy Map View 50x35 Zoom Use 0% Tactical HUD 1 Map Filters NONE Filters NONE Steam 0 RUN: 943f485b-42b3-4aa0-a256-bbd2848f8535